Cogmind - Beta 15 @@@ ROGUE MODE // 2025.07.16 @ 19:17:33 Player: BlobtheGreat Result: Destroyed by Y-54 Guardian with Flak Gun Performance ------------- Evolutions (3) 1500 Regions Visited (11) 2200 Robots Destroyed (265) 1325 Value Destroyed (9597) 9597 Prototype IDs (10) 200 Alien Tech Used (0) 0 Bonus (3255) 3255 TOTAL SCORE: 18077 Bonus ------- High Alert Combat Kills 709 Follower Combat Kills 646 Entered Garrisons 400 Used RIF Installer 1500 Cogmind --------- Core Integrity 0/700 Matter 252/300 Energy 267/290 System Corruption 19% Temperature Cool (36) Movement Treading (240) Ox1 Location -7/Factory Parts ------- > --- POWER (1) -------- Improved Deuterium Engine > --- PROPULSION (5) --- Light Treads Light Treads Light Treads > --- UTILITY (4) ------ High-capacity Storage Unit Improved Medium Armor Plating Relay Coupler [Grunt] (28) Relay Coupler [Hunter] (2) > --- WEAPON (3) ------- Plasma Cannon High-powered Shotgun KE Penetrator > --- INVENTORY (20) --- Improved Deuterium Engine Improved Deuterium Engine Improved Hover Unit Combat Airjet Large Storage Unit Seismic Detector Advanced Phase Shifter Hardened Medium Armor Plating Hacking Suite Relay Coupler [NC] (23) Relay Coupler [Swarmer] (34) Relay Coupler [Sentry] (22) Relay Coupler [Heavy] (13) Gauss Rifle Gauss Rifle Precision Grenade Launcher Long-range Missile Launcher Remote Datajack Remote Datajack Power Maul Peak State ------------ > --- POWER ------------ Light Antimatter Reactor > --- PROPULSION ------- Airjet Aerolev Unit Aerolev Unit Aerolev Unit Combat Airjet > --- UTILITY ---------- Large Storage Unit Advanced Targeting Computer Relay Coupler [Grunt] Relay Coupler [Sentry] > --- WEAPON ----------- Minigun Enhanced Autogun Remote Datajack > --- INVENTORY -------- Light Nuclear Core Advanced Heat Sink High-capacity Storage Unit Recoil Stabilizer Reaction Control System Hardened Light Armor Plating Improved Light Armor Plating Authchip [R/Combat] Authchip [R/Combat] Authchip [R/Combat] Authchip [Weapon] Relay Coupler [NC] Gauss Rifle Rocket Launcher Great Axe [Rating: 53] Favorites ----------- Power Light Antimatter Reactor Engine Heavy Ion Engine Power Core Light Fission Core Reactor Light Antimatter Reactor Propulsion Light Treads Treads Light Treads Leg Aluminum Leg Wheel Armored Wheel Hover Unit Aerolev Unit Utility Large Storage Unit Device Seismic Detector Storage Large Storage Unit Processor Advanced Targeting Computer Hackware Relay Coupler [Grunt] Protection Hardened Light Armor Plating Weapon Minigun Energy Gun Lightning Gun Energy Cannon Plasma Cannon Ballistic Gun Minigun Launcher Precision Grenade Launcher Special Weapon Remote Datajack Impact Weapon Hammer Slashing Weapon Great Axe Build | -11 -10 -9 -9 -9 -8 -8 -8 -8 -7 -7 -7 ------- Run | Yrd Mat Mat Min Exi Min Mat Gar Mat Fac Gar Fac Slots Evolved 6 | . . 2 . . . 2 . . 2 . . Power . | . . . . . . . . . . . . Propulsion 3 | . . 1 . . . 1 . . 1 . . Utility 2 | . . 1 . . . 1 . . . . . Weapon 1 | . . . . . . . . . 1 . . Parts Attached 159 | 7 6 27 1 . 10 13 19 21 9 31 15 Power 20 | 1 1 4 . . 2 2 1 1 1 5 2 Engine 14 | 1 1 4 . . 2 2 . . . 3 1 Core 4 | . . . . . . . . . 1 2 1 Reactor 2 | . . . . . . . 1 1 . . . Propulsion 63 | 2 . 11 . . 3 6 10 14 1 10 6 Treads 51 | 2 . 11 . . 3 6 7 10 . 6 6 Leg 3 | . . . . . . . 3 . . . . Wheel 2 | . . . . . . . . . . 2 . Hover 7 | . . . . . . . . 4 1 2 . Flight . | . . . . . . . . . . . . Utility 33 | 2 3 3 . . 3 2 4 3 4 7 2 Device 8 | 1 1 . . . 1 . 2 . 1 2 . Storage 5 | 1 1 1 . . . 1 . 1 . . . Processor 2 | . . . . . 1 1 . . . . . Hackware 7 | . . . . . . . . 1 3 2 1 Protection 11 | . 1 2 . . 1 . 2 1 . 3 1 Artifact . | . . . . . . . . . . . . Weapon 43 | 2 2 9 1 . 2 3 4 3 3 9 5 Energy Gun 3 | . . . . . 1 1 1 . . . . Energy Cannon 1 | . . . . . . . . . . . 1 Ballistic Gun 29 | 2 . 8 . . 1 2 2 2 1 9 2 Ballistic Cannon . | . . . . . . . . . . . . Launcher 5 | . 1 1 1 . . . . . 1 . 1 Special Weapon 2 | . . . . . . . . 1 . . 1 Impact Weapon 1 | . 1 . . . . . . . . . . Slashing Weapon 2 | . . . . . . . 1 . 1 . . Piercing Weapon . | . . . . . . . . . . . . Special Melee Weapon . | . . . . . . . . . . . . Unidentified Prototypes 6 | . . 1 . . . 1 . 1 2 . 1 Corrupted Parts 2 | . . . . . . . 1 1 . . . System Corruption 5 | . . . . . . . 4 1 . . . Parts Lost 59 | . 1 2 . . 8 3 13 3 2 19 8 Power 9 | . . 1 . . 1 . 1 1 1 3 1 Propulsion 23 | . . . . . 3 1 6 . 1 7 5 Utility 12 | . 1 1 . . 2 . 3 1 . 4 . Weapon 15 | . . . . . 2 2 3 1 . 5 2 Highest Loss Streak 8 | . 1 1 . . 3 1 3 1 1 8 2 To Critical Strikes . | . . . . . . . . . . . . Average Backups 14 | 5 9 12 15 15 13 14 14 17 14 14 17 Power . | . 1 1 1 1 . . . . . . . Propulsion 1 | 3 2 2 2 2 1 . 1 3 . 1 2 Utility 6 | . 2 2 4 4 4 4 5 10 10 10 11 Weapon 4 | . 3 6 8 8 7 8 5 3 3 2 2 Tool/Special . | . . . . . . . . . . . . Unused Backups 57 | . 5 11 . . 1 12 3 1 3 . 21 Power 5 | . 1 2 . . . . . . . . 2 Propulsion 8 | . 3 2 . . 1 . 1 . . . 1 Utility 24 | . . 1 . . . 5 2 1 3 . 12 Weapon 19 | . 1 6 . . . 7 . . . . 5 Tool/Special 1 | . . . . . . . . . . . 1 Average Slot Usage (%) 98 | . 99 99 100 100 99 98 98 99 99 89 98 Engine 6 | . 14 11 11 11 10 9 2 . . 3 . Core 1 | . . . . . . . . . 5 2 6 Reactor 1 | . . . . . . . 6 9 1 . . Treads 28 | . 27 32 33 33 32 34 29 36 . 15 32 Wheel 1 | . . . . . . . . . . 4 4 Hover 3 | . . . . . . . . . 38 12 . Device 7 | . 10 11 11 11 9 9 8 2 2 7 1 Storage 9 | . 14 11 11 11 11 9 9 9 7 7 7 Processor 3 | . . . . . 4 9 9 9 4 . . Hackware 5 | . . . . . . . . 6 13 9 19 Protection 6 | . 2 10 11 11 8 9 8 8 1 2 2 Ballistic Gun 17 | . 26 21 21 22 17 14 13 17 10 13 13 Slashing Weapon 1 | . . . . . . . 1 . 3 5 1 Peak Build Rating 53 | 7 8 19 19 19 23 28 37 44 53 49 46 Average Rating 28 | 5 7 15 18 19 20 26 32 33 49 39 44 On Entrance 24 | . 7 8 19 19 19 20 28 35 44 47 43 Naked Turns . | . . . . . . . . . . . . Heaviest Build 72 | 13 22 41 41 40 42 38 44 64 47 50 72 Greatest Support 102 | 40 40 60 60 60 60 80 80 83 44 80 102 Greatest Overweight (x) 11 | . . 1 . . 1 . 1 1 1 11 1 Average Overweight (x) . | . . . . . . . . . . . . Largest Inventory Capacity 20 | 8 10 15 15 15 15 15 15 20 20 15 20 Average Capacity 15 | 7 9 13 15 15 15 15 15 18 15 15 18 Most Carried 20 | 7 10 15 15 15 15 15 15 20 15 15 20 Average Carried 14 | 5 9 12 15 15 13 14 14 17 14 14 17 Final Capacity 20 | 8 10 15 15 15 15 15 15 20 15 15 20 Final Carried 20 | 7 10 15 15 15 11 15 15 16 15 15 20 Class Distribution -------------------- 52% | Scavenger-Mutant 23% | Mutant 7% | Bothacker-Gunner 7% | Bothacker-Mutant 4% | Bothacker-Tank Dominant Class ---------------- Mutant | -10/Materials Scavenger-Mutant | -9/Materials Scavenger-Mutant | -9/Mines Scavenger-Mutant | -9/Exiles Mutant | -8/Mines Scavenger-Mutant | -8/Materials Scavenger-Mutant | -8/Garrison Bothacker-Mutant | -8/Materials Mutant | -7/Factory Scavenger-Mutant | -7/Garrison Bothacker-Gunner | -7/Factory Resources | -11 -10 -9 -9 -9 -8 -8 -8 -8 -7 -7 -7 ----------- Run | Yrd Mat Mat Min Exi Min Mat Gar Mat Fac Gar Fac Matter Collected 8046 | 338 500 1102 114 . 572 840 1040 1032 481 1178 849 Remotely . | . . . . . . . . . . . . Salvage Created 10983 | 107 702 1505 127 . 1065 1226 1331 1726 547 1724 923 Parts 635 | 7 45 110 6 . 49 80 92 94 28 75 49 Haulers Intercepted 15 | . 1 5 . . . 1 . 5 1 . 2 Recyclers Shooed 5 | 1 1 1 . . 1 . . . . . 1 Parts Field Recycled . | . . . . . . . . . . . . Retrieved Matter . | . . . . . . . . . . . . Parts Self-Destructed . | . . . . . . . . . . . . Prevented . | . . . . . . . . . . . . Kills | -11 -10 -9 -9 -9 -8 -8 -8 -8 -7 -7 -7 ------- Run | Yrd Mat Mat Min Exi Min Mat Gar Mat Fac Gar Fac Combat Hostiles Destroyed 197 | . 15 28 3 . 19 27 34 23 3 30 15 Melee 5 | . . . . . . . . . 1 4 . Guns 161 | . 12 23 3 . 19 22 32 23 2 19 6 Cannons 4 | . . . . . . . . . . . 4 AOE 27 | . 3 5 . . . 5 2 . . 7 5 Classes Destroyed 16 | 2 7 1 . . 3 . 2 . 1 . . Worker 12 | . 2 3 . . 2 2 . 1 2 . . Builder 5 | . 1 1 . . 1 1 . 1 . . . Tunneler 5 | 2 1 . . . . . . 1 1 . . Hauler 15 | . 1 5 . . . 1 . 5 1 . 2 Recycler 9 | 1 1 1 . . . . . 3 3 . . Operator 7 | . 1 4 . . . 1 . 1 . . . Watcher 15 | . 2 5 . . . 1 . 2 1 1 3 Swarmer 40 | . 3 9 . . . 9 10 2 . 5 2 Grunt 88 | . 12 9 3 . 15 11 12 11 . 12 3 Brawler 5 | . . . . . 1 . . 1 1 2 . Duelist 3 | . . . . . 1 . 1 1 . . . Protector 1 | . . . . . . . 1 . . . . Sentry 47 | . . 10 . . . 7 7 7 . 11 5 Demolisher 1 | . . . . . . . 1 . . . . Hunter 7 | . . . . . 2 . 2 1 1 . 1 Programmer 5 | . . . . . . . . . 1 . 4 Best Kill Streak 10 | 2 4 4 2 . 4 4 5 10 2 9 3 Combat Bots Only 9 | . 3 3 2 . 3 4 5 6 1 9 3 Max Kills in Single Turn 4 | 1 2 2 1 . 2 4 1 3 1 4 3 Gunslinging . | . . . . . . . . . . . . Exploded 4 | . 1 1 . . . 3 1 . . 4 3 Melee 1 | . . . . . . . . . 1 1 . Uniques/NPCs Destroyed . | . . . . . . . . . . . . Combat | -11 -10 -9 -9 -9 -8 -8 -8 -8 -7 -7 -7 -------- Run | Yrd Mat Mat Min Exi Min Mat Gar Mat Fac Gar Fac Hostile Shots Fired 1400 | . 69 113 18 . 114 99 166 86 35 483 217 Missed 448 | . 26 31 11 . 26 28 49 24 21 166 66 Hits 952 | . 43 82 7 . 88 71 117 62 14 317 151 Melee 12 | . . . . . 1 . 3 2 . 6 . Projectile 940 | . 43 82 7 . 87 71 114 60 14 311 151 AOE 7 | . . . . . . . 7 . . . . Critical Strikes 28 | . 1 . 1 . 4 4 8 2 1 5 2 Actively Blocked 1 | . . . . . . 1 . . . . . Damage Taken 11743 | . 504 1025 70 . 1363 1025 1839 998 210 3056 1653 Core 1574 | . 76 156 6 . 212 144 115 164 31 572 98 Absorbed by Shields 94 | . . . . . . . . . . 94 . Redirected to Shielding 44 | . . . . . 4 30 10 . . . . Regen/Repaired (Parts) 423 | . 114 94 . . . 215 . . . . . Core Remaining (%) 49 | 100 69 . . . 6 . . 23 . . . Volleys Fired 754 | 12 63 107 12 . 78 92 105 99 34 91 61 Largest 3 | 2 2 2 2 . 2 2 2 2 2 3 3 Hottest 143 | 40 40 53 50 . 70 80 110 53 50 84 143 Shots Fired 1510 | 24 122 210 23 . 156 182 203 195 58 180 157 Gun 1431 | 24 117 204 22 . 156 181 202 193 48 173 111 Cannon 43 | . . . . . . . . . . . 43 Launcher 23 | . 5 6 1 . . 1 1 . . 7 2 Special 13 | . . . . . . . . 2 10 . 1 Kinetic 1352 | 24 117 204 22 . 129 156 175 193 48 173 111 Thermal 43 | . . . . . . . . . . . 43 Explosive 23 | . 5 6 1 . . 1 1 . . 7 2 Electromagnetic 79 | . . . . . 27 25 27 . . . . Robot Hit Streak 26 | 4 11 15 6 . 12 18 26 18 6 17 7 Robot Miss Streak 5 | 3 4 4 4 . 5 3 4 5 4 5 5 Penetration Max 1 | . . . . . . . . 1 . 1 . Secondary Targets 13 | . . 1 1 . 1 . 3 4 . 3 . Max Gunslinging Chain 1 | . . 1 1 . 1 . 1 1 . 1 . Shots Hit Robots 1054 | 12 83 143 13 . 105 136 154 135 38 147 88 Core Hits 486 | 4 41 72 5 . 45 55 67 58 13 92 34 Critical Kills 5 | . . . . . 3 . . 1 . 1 . Critical Parts Destroyed 8 | . 1 1 1 . 1 . . 2 . 1 1 Critical Strikes 21 | . 1 2 1 . 4 . . 3 . 9 1 Destroy 14 | . 1 2 1 . 4 . . 3 . 2 1 Sever 7 | . . . . . . . . . . 7 . Melee Attacks 86 | . 5 . . . . . 10 . 26 43 2 Impact 5 | . 5 . . . . . . . . . . Slashing 81 | . . . . . . . 10 . 26 43 2 Piercing . | . . . . . . . . . . . . Sneak Attacks 7 | . . . . . . . . . 6 . 1 Combat Hostiles . | . . . . . . . . . . . . Follow-up Attacks . | . . . . . . . . . . . . Damage Inflicted 21930 | 167 1375 2487 290 . 1850 2750 2712 2827 947 4243 2282 Guns 17280 | 167 1062 2057 246 . 1801 2390 2593 2816 395 2402 1351 Cannons 526 | . . . . . . . . . . . 526 Explosions 1931 | . 241 404 29 . 38 329 83 . . 531 276 Melee 2005 | . . . . . . . 30 . 552 1310 113 Ramming 188 | . 72 26 15 . 11 31 6 11 . . 16 Kinetic 16097 | 167 1062 2057 246 . 1480 1967 2154 2816 395 2402 1351 Thermal 727 | . . . . . 38 118 45 . . . 526 Explosive 1730 | . 241 404 29 . . 211 38 . . 531 276 Electromagnetic 1183 | . . . . . 321 423 439 . . . . Impact . | . . . . . . . . . . . . Slashing 2005 | . . . . . . . 30 . 552 1310 113 Piercing . | . . . . . . . . . . . . Highest Corruption 19 | . 4 . . . . . 4 6 4 16 19 Average Corruption 8 | . 2 . . . . . 4 4 3 10 16 Corruption Purged . | . . . . . . . . . . . . Corruption Blocked . | . . . . . . . . . . . . Effects 295 | . 18 . . . . . 25 46 21 60 125 Message Errors 64 | . 3 . . . . . 3 10 8 10 30 Matter Fused 57 | . 6 . . . . . 4 7 2 10 28 Heat Flow Errors 41 | . 3 . . . . . 3 10 3 11 11 Energy Discharges 39 | . 2 . . . . . 5 8 2 13 9 Parts Rejected 3 | . . . . . . . . 1 . . 2 Parts Fused 2 | . 1 . . . . . . . . . 1 Data Loss (minor) 42 | . . . . . . . 1 7 4 4 26 Data Loss (major) 8 | . . . . . . . 1 . 1 2 4 Misfires 18 | . 2 . . . . . 4 . . 2 10 Alerts 5 | . . . . . . . 2 2 1 . . Misdirections 3 | . . . . . . . . . . 1 2 Weapon Failures 13 | . 1 . . . . . 2 1 . 7 2 Overload Shots . | . . . . . . . . . . . . Overflow Damage 134 | . 3 22 . . . . . . 22 48 39 Projectiles . | . . . . . . . . . . . . Explosions 107 | . . 22 . . . . . . . 46 39 Melee 27 | . 3 . . . . . . . 22 2 . Knockbacks 1 | . . . . . . 1 . . . . . Impact 1 | . . . . . . 1 . . . . . Kinetic . | . . . . . . . . . . . . Secondary . | . . . . . . . . . . . . Self-Inflicted Damage 315 | . . 89 . . . 46 . . . 63 117 Shots 8 | . . 3 . . . 1 . . . 2 2 Rammed 40 | 1 12 7 4 . 3 5 2 2 . . 4 Targets Rammed 45 | 1 15 7 4 . 4 6 2 2 . . 4 Kicked . | . . . . . . . . . . . . Crushed 5 | . 3 . . . 1 1 . . . . . Highest Temperature 298 | . 245 20 79 . 212 151 248 267 253 286 298 Average Temperature 69 | . 79 6 34 . 66 25 58 55 68 109 106 Received Heat Transfer 4019 | . 249 288 42 . 702 432 576 378 48 1124 180 Effects 4 | . 1 . . . . . . . 2 1 . Energy Bleed 1 | . 1 . . . . . . . . . . Interference 3 | . . . . . . . . . 2 1 . Siege Activations . | . . . . . . . . . . . . Martial Activations . | . . . . . . . . . . . . Shielding Activations . | . . . . . . . . . . . . Robots Disrupted 1 | . . . . . . . 1 . . . . Combat Hostiles 1 | . . . . . . . 1 . . . . Robots Corrupted . | . . . . . . . . . . . . Combat Hostiles . | . . . . . . . . . . . . Parts Fried 4 | . . . . . . . 4 . . . . Impact Corruptions 1 | . 1 . . . . . . . . . . Robots Melted . | . . . . . . . . . . . . Combat Hostiles . | . . . . . . . . . . . . Parts Melted 1 | . . . . . . . . . . . 1 Heat Transferred 1150 | . . . . . 50 100 50 . . . 950 Parts Sabotaged . | . . . . . . . . . . . . Parts Stolen . | . . . . . . . . . . . . Parts Stripped . | . . . . . . . . . . . . Power Chain Reactions 4 | . . . . . 1 2 1 . . . . Alert | -11 -10 -9 -9 -9 -8 -8 -8 -8 -7 -7 -7 ------- Run | Yrd Mat Mat Min Exi Min Mat Gar Mat Fac Gar Fac Maximum Alert Level 4 | . 1 1 . . . 1 4 2 1 3 2 Low Security (%) 49 | 100 99 50 100 . 100 72 6 43 98 10 1 Level 1 28 | . . 49 . . . 27 12 49 1 19 57 Level 2 13 | . . . . . . . 41 6 . 27 40 Level 3 7 | . . . . . . . 33 . . 43 . Level 4 . | . . . . . . . 6 . . . . Level 5 . | . . . . . . . . . . . . High Security . | . . . . . . . . . . . . Max Security . | . . . . . . . . . . . . Peak Influence 1242 | 10 205 346 131 . 123 292 1242 605 200 1053 619 Initial 605 | . . 3 124 . . 8 176 605 121 131 552 Average 264 | . 50 208 49 . 65 113 621 207 70 602 378 Influence Increases 7659 | 15 568 939 227 . 513 897 1276 728 516 1232 748 Destroy 0b10 Robot/C 4420 | . 300 560 160 . 380 540 800 460 120 740 360 Destroy 0b10 Robot/NC 365 | 15 45 95 . . 15 30 5 70 40 20 30 Destroy Leader 918 | . 56 200 30 . 80 134 50 144 44 30 150 Allied During Kill 132 | . . . 30 . . . 16 . 8 71 7 Successful Hack 125 | . 25 18 . . . 5 14 21 18 . 24 Disable Machine 270 | . 45 45 . . . 15 . 30 15 . 120 Anti-Garrison Action 450 | . . . . . . . 200 . . 250 . Destroy Structure 289 | . 22 21 7 . 8 23 56 3 16 76 57 Partial Spotted 105 | . . . . . . 15 15 . 75 . . Lose Combat Pursuer 585 | . 75 . . . 30 135 120 . 180 45 . Influence Decreases 7437 | 15 559 629 447 99 490 648 306 1702 596 367 1579 Entered New Map 1753 | . . 6 195 99 . 15 96 637 147 57 501 Time Decay 3696 | 15 363 603 252 . 410 421 . 565 389 . 678 Lost Part 570 | . 10 20 . . 80 20 130 30 10 190 80 Lost Ally 300 | . . . . . . 10 80 20 50 120 20 Purge Threat 1118 | . 186 . . . . 182 . 450 . . 300 Squads Dispatched 27 | . 2 4 . . 1 3 . 2 7 . 8 Investigation 5 | . 1 . . . . . . 1 2 . 1 Extermination 7 | . . . . . . . . . 3 . 4 Reinforcement 13 | . 1 4 . . 1 1 . 1 2 . 3 Assault . | . . . . . . . . . . . . Garrison 2 | . . . . . . 2 . . . . . Intercept . | . . . . . . . . . . . . Searches Triggered . | . . . . . . . . . . . . Construction Impeded 2 | . . . . . 1 . . . . . 1 Haulers Reinforced 1 | . . . . . . . . . 1 . . Active Scanning Responses . | . . . . . . . . . . . . Cargo Convoy Interrupts 1 | . . . . . . . . . 1 . . Stealth | -11 -10 -9 -9 -9 -8 -8 -8 -8 -7 -7 -7 --------- Run | Yrd Mat Mat Min Exi Min Mat Gar Mat Fac Gar Fac Distress Signals 22 | . 1 1 . . . 7 . 4 6 . 3 Communications Jammed 43 | . . . . . . . . 37 6 . . Distress Signals 43 | . . . . . . . . 37 6 . . Times Spotted 337 | . 27 43 8 . 22 45 51 35 38 45 23 Peak Tracking Total 9 | . 4 5 3 . 3 4 6 4 9 8 3 Tactical Retreats 28 | . 4 . . . 2 7 6 . 6 3 . Traps | -11 -10 -9 -9 -9 -8 -8 -8 -8 -7 -7 -7 ------- Run | Yrd Mat Mat Min Exi Min Mat Gar Mat Fac Gar Fac Traps Triggered 23 | . 2 2 . . . 2 3 2 5 6 1 Indirectly . | . . . . . . . . . . . . Trap Hack Attempts . | . . . . . . . . . . . . Triggered . | . . . . . . . . . . . . Disarmed . | . . . . . . . . . . . . Reprogrammed . | . . . . . . . . . . . . Reused . | . . . . . . . . . . . . Traps Extracted . | . . . . . . . . . . . . Installed . | . . . . . . . . . . . . Triggered . | . . . . . . . . . . . . Machines | -11 -10 -9 -9 -9 -8 -8 -8 -8 -7 -7 -7 ---------- Run | Yrd Mat Mat Min Exi Min Mat Gar Mat Fac Gar Fac Machines Disabled 24 | . 3 3 . . . 1 2 2 1 4 8 Max in Single Turn 6 | . 3 1 . . . 1 1 1 1 1 6 Garrison Access 5 | . . . . . . . . 1 2 . 2 Garrison Relay 5 | . . . . . . . 2 . . 3 . Machines Repaired . | . . . . . . . . . . . . Machines Dismantled . | . . . . . . . . . . . . Machines Sabotaged . | . . . . . . . . . . . . Overloaded Fab Kills . | . . . . . . . . . . . . Hacking | -11 -10 -9 -9 -9 -8 -8 -8 -8 -7 -7 -7 --------- Run | Yrd Mat Mat Min Exi Min Mat Gar Mat Fac Gar Fac Machines Accessed 75 | . 8 9 . 4 . 8 2 12 18 2 12 Terminals 47 | . 7 7 . . . 6 2 10 10 2 3 Fabricators . | . . . . . . . . . . . . Repair Stations 4 | . 1 2 . . . 1 . . . . . Recycling Units 6 | . . . . . . . . 1 2 . 3 Scanalyzers 7 | . . . . . . . . . 3 . 4 Garrison Access 7 | . . . . . . 1 . 1 3 . 2 Total Hacks 174 | . 30 25 . 4 . 17 2 33 33 3 27 Successful 82 | . 21 9 . 4 . 7 2 14 13 1 11 Failed 91 | . 9 16 . . . 10 . 18 20 2 16 Catastrophic 24 | . 1 3 . . . 1 . 8 9 . 2 Database Lockouts 1 | . . . . . . . . 1 . . . Manual 84 | . 16 15 . 1 . 11 . 27 7 . 7 Terminals 125 | . 26 17 . . . 13 2 31 20 3 13 Fabricators . | . . . . . . . . . . . . Repair Stations 14 | . 4 8 . . . 2 . . . . . Recycling Units 10 | . . . . . . . . 1 4 . 5 Scanalyzers 13 | . . . . . . . . . 6 . 7 Garrison Access 8 | . . . . . . 2 . 1 3 . 2 Terminal Hacks 42 | . 13 . . 4 . 2 2 9 6 1 5 Record 4 | . . . . 4 . . . . . . . Robot Analysis 3 | . 2 . . . . . . 1 . . . Prototype ID Bank 2 | . 1 . . . . . . . 1 . . Open Door 2 | . . . . . . . 1 . . 1 . Branch Access Points 1 | . . . . . . . . . . . 1 Emergency Access Points 2 | . . . . . . . 1 . 1 . . Fabricator Index 2 | . . . . . . . . . 1 . 1 Scanalyzer Index 2 | . . . . . . . . . 1 . 1 Alert Level 2 | . 2 . . . . . . . . . . Unreport Threat 9 | . 2 . . . . 2 . 3 . . 2 Locate Traps 1 | . 1 . . . . . . . . . . Maintenance Status 1 | . 1 . . . . . . . . . . Surveillance Status 1 | . 1 . . . . . . . . . . Reinforcement Status 1 | . . . . . . . . 1 . . . Recall Investigation 1 | . 1 . . . . . . . . . . Recall Reinforcements 1 | . . . . . . . . 1 . . . Hauler Manifests 5 | . 2 . . . . . . 2 1 . . Zone Layout 2 | . . . . . . . . 1 1 . . Fabricator Hacks . | . . . . . . . . . . . . Repair Station Hacks 10 | . 3 5 . . . 2 . . . . . Scan Component 6 | . 2 3 . . . 1 . . . . . Repair 4 | . 1 2 . . . 1 . . . . . Recycling Unit Hacks 3 | . . . . . . . . 1 . . 2 Retrieve Components 3 | . . . . . . . . 1 . . 2 Scanalyzer 5 | . . . . . . . . . 3 . 2 Insert Component 3 | . . . . . . . . . 1 . 2 Analyze 2 | . . . . . . . . . 2 . . Garrison Access Hacks 7 | . . . . . . 1 . 1 3 . 2 Unlock Access 2 | . . . . . . 1 . . 1 . . Seal Access 5 | . . . . . . . . 1 2 . 2 Unauthorized Hacks 15 | . 5 4 . . . 2 . 3 1 . . Terminals 15 | . 5 4 . . . 2 . 3 1 . . Assimilate 1 | . . . . . . 1 . . . . . Botnet 3 | . . . . . . 1 . 1 1 . . Operators 2 | . . . . . . . . 2 . . . Skim 9 | . 5 4 . . . . . . . . . Fabricators . | . . . . . . . . . . . . Repair Stations . | . . . . . . . . . . . . Recycling Units . | . . . . . . . . . . . . Scanalyzers . | . . . . . . . . . . . . Garrison Access . | . . . . . . . . . . . . Data Cores Recovered 2 | . . . . . . 1 . . . . 1 Used . | . . . . . . . . . . . . Hacking Detections 62 | . 8 9 . . . 8 1 10 16 2 8 Full Trace Events 5 | . 1 . . . . . . 1 2 . 1 Feedback Events . | . . . . . . . . . . . . Feedback Blocked . | . . . . . . . . . . . . Robot Schematics Acquired . | . . . . . . . . . . . . Robots Built . | . . . . . . . . . . . . Authchips . | . . . . . . . . . . . . Time . | . . . . . . . . . . . . Total Robot Build Rating . | . . . . . . . . . . . . Part Schematics Acquired . | . . . . . . . . . . . . Parts Built . | . . . . . . . . . . . . Authchips . | . . . . . . . . . . . . Time . | . . . . . . . . . . . . Total Part Build Rating . | . . . . . . . . . . . . Parts Repaired 4 | . 1 2 . . . 1 . . . . . Time 116 | . 26 52 . . . 38 . . . . . Parts Recycled . | . . . . . . . . . . . . Recycled Matter . | . . . . . . . . . . . . Retrieved Matter . | . . . . . . . . . . . . Retrieved Components 10 | . . . . . . . . 9 . . 1 Parts Scanalyzed 1 | . . . . . . . . . 1 . . Part Schematics Acquired . | . . . . . . . . . . . . Parts Damaged . | . . . . . . . . . . . . Bothacking | -11 -10 -9 -9 -9 -8 -8 -8 -8 -7 -7 -7 ------------ Run | Yrd Mat Mat Min Exi Min Mat Gar Mat Fac Gar Fac Used RIF Installer 3 | . . . . . . . 2 . . 1 . Signal Jammer 1 | . . . . . . . 1 . . . . Autooverride 1 | . . . . . . . . . . 1 . Robots Hacked 11 | . . . . . . . . 2 8 . 1 Non-combat 3 | . . . . . . . . 2 1 . . Combat 8 | . . . . . . . . . 7 . 1 Robot Hacks Applied 12 | . . . . . . . . 2 9 . 1 wipe_record 5 | . . . . . . . . . 5 . . formatsys_high 7 | . . . . . . . . 2 4 . 1 Relay Couplers Released 18 | . . . . . . . 8 . . 10 . Machine Destruction 18 | . . . . . . . 8 . . 10 . Attached 6 | . . . . . . . . 1 3 2 . Fabnet Peak Effective % . | . . . . . . . . . . . . Robots Rewired 9 | . . . . . . . 3 . . 6 . Allies Hacked . | . . . . . . . . . . . . Hacks Repelled . | . . . . . . . . . . . . Allies | -11 -10 -9 -9 -9 -8 -8 -8 -8 -7 -7 -7 -------- Run | Yrd Mat Mat Min Exi Min Mat Gar Mat Fac Gar Fac Total Allies 21 | . . . 3 . . 1 4 2 4 6 1 Largest Group 6 | . . . 3 3 3 1 3 2 2 6 1 Highest-Rated Group 134 | . . . 40 40 40 10 74 36 48 134 21 Highest-Rated Ally 40 | . . . 16 16 16 10 40 26 32 31 21 Total Orders 1 | . . . . . . . . 1 . . . STAY 1 | . . . . . . . . 1 . . . Ally Attacks 112 | . . . 21 . 6 . 22 . 17 32 14 Total Damage 1838 | . . . 179 . 74 . 400 . 450 433 302 Kills 26 | . . . 5 . . . 7 . 3 7 4 Allies Corrupted . | . . . . . . . . . . . . Allies Melted . | . . . . . . . . . . . . Intel | -11 -10 -9 -9 -9 -8 -8 -8 -8 -7 -7 -7 ------- Run | Yrd Mat Mat Min Exi Min Mat Gar Mat Fac Gar Fac Active Infowar (turns) 9079 | 76 1118 2658 870 810 25 1551 311 . . 1275 385 Sensors 1660 | . . . . . . . . . . 1275 385 Seismic 7419 | 76 1118 2658 870 810 25 1551 311 . . . . Robot Analysis Total 3 | . 2 . . . . . . 1 . . . Derelict Logs Recovered 1 | . . . 1 . . . . . . . . Drone Launches . | . . . . . . . . . . . . Drone Recoveries . | . . . . . . . . . . . . Exploration | -11 -10 -9 -9 -9 -8 -8 -8 -8 -7 -7 -7 ------------- Run | Yrd Mat Mat Min Exi Min Mat Gar Mat Fac Gar Fac Turns Passed 17352 | 182 1493 2658 870 810 982 1551 1609 1842 1046 1642 2667 Spaces Moved 10473 | 84 752 1350 517 507 460 738 726 956 1772 986 1625 Core 8 | 6 . . . . . . . . . 2 . Treads 7643 | 78 752 1350 517 507 460 738 726 955 . 212 1348 Legs . | . . . . . . . . . . . . Wheels 511 | . . . . . . . . . . 234 277 Hover 2311 | . . . . . . . . 1 1772 538 . Flight . | . . . . . . . . . . . . Fastest Speed 42 | 50 160 160 160 160 160 160 160 107 42 42 105 Average Speed 135 | 152 160 160 160 160 161 162 167 159 47 109 148 Slowest Speed 600 | 160 160 240 160 160 240 163 245 160 104 600 240 Overloaded Moves . | . . . . . . . . . . . . Propulsion Burnouts . | . . . . . . . . . . . . Robots Hopped . | . . . . . . . . . . . . Potential Cave-ins . | . . . . . . . . . . . . Cave-ins Triggered . | . . . . . . . . . . . . Exploration Rate (%) 68 | 5 98 96 98 80 57 66 77 73 54 74 49 Regions Visited 11 Branch Regions 3 Pre-discovered Areas 1 | . . . 1 . . . . . . . . Known Exits Taken 5 | . 1 1 . 1 . 1 . . 1 . . Unknown Exits Taken 4 | 1 . . 1 . 1 . . 1 . . . Scrap Searched 3 | . . . 1 . 2 . . . . . . Spaces Dug 20 | . 2 . . . . . . . 16 2 . Terrain Destroyed 223 | . 20 18 7 . 9 21 6 1 16 43 82 Melee 20 | . 2 . . . . . . . 16 2 . Projectile 21 | . . . . . . . . 1 . 6 14 AOE 182 | . 18 18 7 . 9 21 6 . . 35 68 Terrain Rammed . | . . . . . . . . . . . . Walls Destroyed . | . . . . . . . . . . . . Machines Disabled . | . . . . . . . . . . . . Actions | -11 -10 -9 -9 -9 -8 -8 -8 -8 -7 -7 -7 --------- Run | Yrd Mat Mat Min Exi Min Mat Gar Mat Fac Gar Fac Total 12279 | 110 906 1659 539 506 565 946 957 1116 1906 1315 1754 Wait 263 | . 40 97 3 . 7 51 5 4 16 37 3 Move 10463 | 83 751 1349 516 506 459 738 725 955 1771 985 1625 Hop . | . . . . . . . . . . . . Pick Up 128 | 7 13 23 1 . 5 18 12 11 14 8 16 Fast Attach 70 | 7 1 9 . . . 8 9 1 6 20 9 Attach 42 | . 1 4 . . 8 3 8 3 5 7 3 Detach 10 | . . . . . . . . . 5 3 2 Swap 127 | . 6 27 2 . 2 12 19 23 8 13 15 Drop 136 | . 11 36 1 . 2 18 10 18 13 13 14 Fire 754 | 12 63 107 12 . 78 92 105 99 34 91 61 Melee 86 | . 5 . . . . . 10 . 26 43 2 Ram . | . . . . . . . . . . . . Kick . | . . . . . . . . . . . . Crush 45 | 1 15 7 4 . 4 6 2 2 . . 4 Escape Stasis 27 | . . . . . . . . . 8 19 . Rewire 128 | . . . . . . . 52 . . 76 . Trap . | . . . . . . . . . . . . Miscellaneous . | . . . . . . . . . . . . Route ------- -11/Scrapyard -10/Materials (discovered 5 exits: *Mat x3 / [*Min] / *Sub) -9/Materials (discovered 6 exits: *Mat x3 / *Min x2 / [*Sto]) -9/Mines (discovered 3 exits: *Mat x2 / *Exi) -9/Exiles (discovered 2 exits: *Min x2) -8/Mines -8/Materials (discovered 2 exits: *Fac / Gar) -8/Garrison (discovered 3 exits: *Mat x3) -8/Materials (discovered 2 exits: *Fac x2) -7/Factory (discovered 4 exits: [*Fac x2] / *Low / Gar) -7/Garrison (discovered 3 exits: *Fac x3) -7/Factory (discovered 4 exits: [*Fac x2] / *Low x2) History --------- Turn | Location | Event 7 | -11/Scrapyard | Discovered new exit (range 14) 183 | -11/Scrapyard | Entered Materials 337 | -10/Materials | Build established: Mutant 435 | -10/Materials | Discovered new exit (range 7) 848 | -10/Materials | Repaired Lgt. Treads 1059 | -10/Materials | Learned Storage security intel 1088 | -10/Materials | Discovered new exit (range 7) 1111 | -10/Materials | Identified exit to Materials 1111 | -10/Materials | Identified exit to Subcaves 1181 | -10/Materials | Learned location of 2 exits from Subcaves 1212 | -10/Materials | Loaded intel: 10 trap records 1235 | -10/Materials | Learned Storage trap positions 1315 | -10/Materials | Learned Storage trap positions 1372 | -10/Materials | Learned Storage stockpile data 1676 | -10/Materials | Entered another Materials area 1676 | -9/Materials | Evolved 2 slots: Propulsion x1, Utility x1 1677 | -9/Materials | Identified exit to Mines 2017 | -9/Materials | Discovered new exit (range 5) 2149 | -9/Materials | Discovered new exit (range 11) 2338 | -9/Materials | Build established: Scavenger-Mutant 2724 | -9/Materials | Discovered new exit (range 16) 2790 | -9/Materials | Repaired Lgt. Treads 2903 | -9/Materials | Repaired Lgt. Treads 3654 | -9/Materials | Discovered new exit (range 16) 4334 | -9/Materials | Entered Mines 4357 | -9/Mines | Discovered new exit (range 4) 4408 | -9/Mines | Discovered new exit (range 15) 4444 | -9/Mines | Learned location of Storage (-9) 4520 | -9/Mines | Assisted by bots powering up and referring to "LRC-V3" 4553 | -9/Mines | Received a Rocket Launcher from a helpful Derelict 4573 | -9/Mines | Deemed a non-threat by the Exiles lab entrance 4575 | -9/Mines | Discovered new exit (range 5) 4944 | -9/Mines | Found a Scrap Suit stashed away for nefarious purposes 5204 | -9/Mines | Entered Exiles 5204 | -9/Exiles | Found Exiles lab abandoned 5204 | -9/Exiles | Accompanied by 3 allies 5205 | -9/Exiles | Identified exit to Mines 6014 | -9/Exiles | Entered Mines 6014 | -8/Mines | Accompanied by 3 allies 6053 | -8/Mines | Lost 3 allies 6162 | -8/Mines | Core integrity fell below 50% 6338 | -8/Mines | Build established: Mutant 6565 | -8/Mines | Core integrity fell below 20% 6653 | -8/Mines | Discovered new exit (range 5) 6681 | -8/Mines | Build established: Scavenger-Mutant 6889 | -8/Mines | Lost 3 parts (1p1n1u) 6996 | -8/Mines | Entered Materials 6996 | -8/Materials | Evolved 2 slots: Propulsion x1, Utility x1 7348 | -8/Materials | Discovered new exit (range 16) 7462 | -8/Materials | Repaired Arm. Treads 8394 | -8/Materials | Garrison activated, responded to threat 8547 | -8/Materials | Identified exit to Garrison 8547 | -8/Materials | Entered Garrison 8651 | -8/Garrison | Triggered checkpoint 8717 | -8/Garrison | Lost 3 parts (1p1n1w) 8804 | -8/Garrison | Garrison Relay disabled 8912 | -8/Garrison | Triggered checkpoint 9006 | -8/Garrison | Discovered new exit (range 9) 9221 | -8/Garrison | Triggered checkpoint 9370 | -8/Garrison | Build established: Mutant 9382 | -8/Garrison | Discovered new exit (range 13) 9431 | -8/Garrison | Triggered checkpoint 9697 | -8/Garrison | Installed Relay Interface Framework 9805 | -8/Garrison | Triggered checkpoint 9819 | -8/Garrison | Build established: Scavenger-Mutant 9880 | -8/Garrison | Expanded RIF knowledge: Signal Jamming 9914 | -8/Garrison | Rescued a captive Derelict 10012 | -8/Garrison | Discovered new exit (range 11) 10045 | -8/Garrison | Triggered checkpoint 10077 | -8/Garrison | Triggered checkpoint 10091 | -8/Garrison | Garrison Relay disabled 10156 | -8/Garrison | Entered Materials 10425 | -8/Materials | Core integrity fell below 50% 10505 | -8/Materials | Discovered new exit (range 3) 10895 | -8/Materials | Discovered new exit (range 14) 11012 | -8/Materials | Central database locked down 11184 | -8/Materials | Build established: Bothacker-Mutant 11998 | -8/Materials | Entered Factory 11998 | -7/Factory | Evolved 2 slots: Propulsion x1, Weapon x1 12112 | -7/Factory | Discovered new exit (range 8) 12319 | -7/Factory | Discovered new exit (range 9) 12620 | -7/Factory | Cargo convoy interrupted 12851 | -7/Factory | Discovered new exit (range 15) 12868 | -7/Factory | Found Prototype Launcher 12868 | -7/Factory | Identified Rocket Array 12889 | -7/Factory | Build established: Mutant 13031 | -7/Factory | Identified exit to Garrison 13044 | -7/Factory | Entered Garrison 13066 | -7/Garrison | Triggered checkpoint 13124 | -7/Garrison | Triggered checkpoint 13185 | -7/Garrison | Lost 7 parts (1p3n1u2w) 13209 | -7/Garrison | Garrison Relay disabled 13262 | -7/Garrison | Heavy support dispatched to Factory 13317 | -7/Garrison | Discovered new exit (range 15) 13355 | -7/Garrison | Triggered checkpoint 13362 | -7/Garrison | Core integrity fell below 50% 13429 | -7/Garrison | Garrison Relay disabled 13483 | -7/Garrison | Build established: Scavenger-Mutant 13511 | -7/Garrison | Triggered checkpoint 13526 | -7/Garrison | Triggered checkpoint 13649 | -7/Garrison | Discovered new exit (range 12) 13745 | -7/Garrison | Triggered checkpoint 13809 | -7/Garrison | System corruption reached 10% 13841 | -7/Garrison | Lost 8 parts (1p3n2u2w) 13859 | -7/Garrison | Destroyed 9 combat bots 13969 | -7/Garrison | Garrison Relay disabled 14385 | -7/Garrison | Core integrity fell below 20% 14427 | -7/Garrison | Discovered new exit (range 15) 14509 | -7/Garrison | Lost 6 allies 14583 | -7/Garrison | Triggered checkpoint 14612 | -7/Garrison | Expanded RIF knowledge: Autooverride 14686 | -7/Garrison | Entered Factory 15105 | -7/Factory | Discovered new exit (range 11) 15115 | -7/Factory | Build established: Mutant 15635 | -7/Factory | Build established: Bothacker-Tank 15725 | -7/Factory | Discovered new exit (range 16) 16132 | -7/Factory | Identified exit to Lower Caves 16200 | -7/Factory | Build established: Bothacker-Gunner 16693 | -7/Factory | Discovered new exit (range 12) 17353 | -7/Factory | Destroyed by Y-54 Guardian with Flak Gun Last Messages --------------- Plasma Cannon. 17277_ System corrupted: Plasma Cannon misfires. 17277_ Acquired Gauss Rifle. 17289_ K-01 Serf cleans the Nuclear Reactor. 17293_ ALERT: Potential suspicious activity detected, Programmers report to Factory Zone 2G. 17304_ K-01 Serf cleans the Nuclear Reactor. 17311_ System corrupted: Matter fused (-8). 17317_ Connecting with Scanalyzer... 17317_ ALERT: Suspicious activity at Scanalyzer F004. Dispatching Investigation squad. 17328_ System corrupted: Component data lost. 17345_ System corrupted: FCS attempts to trigger KE Penetrator. 17345_ System corrupted: KE Penetrator misfires. 17345_ Slug penetrates Wall. 17349_ Adv. Treads destroyed. 17353_ Slug penetrates Y-54 Guardian. Map ----- +----------------------------------------------------+ | ??????????# # "" ???????? | | ???########! + """ """???????? | | ??? ## """ # "F """ ""????? | | ??? ## """ # """ """ """ | | # """ ## """ # "" ??? | | # """ ## #! """ ""????? | | # """ #####+#### ] """ "?????? | | # # """ ??????? | | # """ # ??? | | # """ ! # """ ]] ?? | | # """ + """ != ]] ?? | | # # """ != ] ??? | | # """ # ?? | | #! """ # ??? | | # """ ## ######+##########??? | | # ## #????? ??????????? | | # "" "" ## #?????? ?????????? | | # ""S"" !## #??????? " ????????? | | # """" ## #????????" "???????? | | # ## u#??????????????????? | | ########### #??????????????????? | | ??? ?# #??????????????????? | | ?? """ # u #??????????????????? | | ?" """ # #??????????????????? | | ?" """ + #??????????????????? | | ?T #@ k #??????????????????? | | #" /! # #??????????????????? | | #" /! ?# #??????????????????? | | #" /! ?# #??????????????????? | | # ??# #??????????????????? | | # ??# #??????????????????? | | # ???# #??????????????????? | | # ???# #??????????????????? | | ######????# #??????????????????? | | ??????????? #??????????????????? | | ??????????? ??????????????????? | | ??????????? ??????????????????? | | ??????????? ?????????????????? | | ??????????? ?????????????????? | | ??????????? Y ???????????????????? | | ??????????? ! ?????????????????????? | | ???????????????????????????????????? | | ???????????????????????????????????? | | ???????????????????????????????????? | | ???????????????????????????????????? | | ???????????????????????????????????? | | ???????????????????????????????????? | | ???????????????????????????????????? | | ???????????????????????????????????? | | ???????????????????????????????????? | +----------------------------------------------------+ Best States ------------- Heat Dissipation 50 Energy Generation 21 Energy Capacity 290 Matter Stores 300 Matter Capacity 300 Sight Range 16 Robot Scan Range 15 Terrain Scan Density 10 Armor Coverage 300 Core Shielding 20 Melee Speed Boost 20 Evasion (%) 56 Targeting Accuracy 8 Recoil Reduction 7 Offensive Hacking 10 Relay Coupler Types 2 Relay Coupler Value 43 Authchip Count 4 Item Schematics ----------------- None Robot Schematics ------------------ None Fabricated ------------ Nothing Repaired ---------- Lgt. Treads | 18% | -10/Materials Lgt. Treads | 64% | -9/Materials Lgt. Treads | 68% | -9/Materials Arm. Treads | 28% | -8/Materials Alien Tech Used ----------------- None Achievements -------------- None Challenges ------------ None Game ------ Seed TargetCorruptionSlayer Manual? 0 Play Time 01:58:46 Cumulative 84.8 hours Start 2025.07.16 @ 17:17:08 End 2025.07.16 @ 19:17:33 Sessions 1 Manual Loads 0 Difficulty Rogue Special Mode None Game No. 80 Rogue 80 Adventurer 0 Explorer 0 Win Type - Total 1 Types 1/0/0/0/0/0/0/0/0/0 Lore% 44 Gallery% 44 Achievement% 45 Wizard Run 0 Options --------- Layout 1 ASCII 0 Keyboard 1 Movement Arrows Keybinds 0 Fullscreen 1 Font 24/Smallcaps Map View 50x40 Zoom Use 0% Tactical HUD 1 Map Filters NONE Filters NONE Steam 1 RUN: 9948227e-8a63-4416-9dad-4604bf316dc3